fUST/lending_fUST_20241113
["ID","MTS","AMOUNT","RATE_DAILY","PERIOD"]
[342141458,1731503448145,-500.0,0.00020613,2]
[342141459,1731503448155,-500.0,0.00020613,2]
[342141460,1731503448165,-1260.12,0.00020613,2]
[342141461,1731503448174,-521.15,0.00020613,2]
[342141462,1731503448184,-500.0,0.00020613,2]
[342141463,1731503448194,-429.30439677,0.00020613,2]
[342141464,1731503448204,-531.69,0.00020613,2]
[342141465,1731503448215,-500.0,0.00020613,2]
[342141466,1731503448224,-500.0,0.00020613,2]
[342141467,1731503448234,-500.0,0.00020613,2]
[342141468,1731503448243,-500.0,0.00020613,2]
[342141469,1731503448253,-500.0,0.00020613,2]
[342141470,1731503448263,-500.0,0.00020613,2]
[342141471,1731503448272,-500.0,0.00020613,2]
[342141472,1731503448281,-500.0,0.00020613,2]
[342141473,1731503448290,-4626.69,0.00020613,2]
[342141474,1731503448300,-500.0,0.00020613,2]
[342141475,1731503448309,-856.5,0.00020613,2]
[342141476,1731503448319,-620.28,0.00020613,2]
[342141477,1731503448328,-500.0,0.00020613,2]
[342141478,1731503448337,-500.0,0.00020613,2]
[342141479,1731503448346,-500.0,0.00020613,2]
[342141480,1731503448355,-500.0,0.00020613,2]
[342141481,1731503448365,-500.0,0.00020613,2]
[342141482,1731503448375,-500.0,0.00020613,2]
[342141483,1731503448385,-366.81,0.00020613,2]
[342141484,1731503448394,-549.94704995,0.00020613,2]
[342141485,1731503448403,-500.0,0.00020613,2]
[342141486,1731503448412,-500.0,0.00020613,2]
[342141487,1731503448421,-500.0,0.00020613,2]
[342141488,1731503448431,-500.0,0.00020613,2]
[342141489,1731503448441,-744.6,0.00020613,2]
[342141490,1731503448451,-500.0,0.00020613,2]
[342141491,1731503448462,-500.0,0.00020613,2]
[342141492,1731503448472,-500.0,0.00020613,2]
[342141493,1731503448485,-500.0,0.00020613,2]
[342141494,1731503448494,-500.17207405,0.00020614,2]
[342141495,1731503448504,-500.0,0.00020614,2]
[342141496,1731503448514,-549.58828499,0.00020614,2]
[342141497,1731503448523,-500.0,0.00020614,2]
[342141498,1731503448533,-500.0,0.00020614,2]
[342141499,1731503448542,-500.0,0.00020614,2]
[342141500,1731503448555,-500.0,0.00020614,2]
[342141501,1731503448565,-500.0,0.00020614,2]
[342141502,1731503448575,-500.0,0.00020614,2]
[342141503,1731503448585,-500.0,0.00020614,2]
[342141504,1731503448595,-500.0,0.00020614,2]
[342141505,1731503448605,-500.0,0.00020614,2]
[342141506,1731503448615,-500.0,0.00020614,2]
[342141507,1731503448625,-536.62295588,0.00020614,2]
[342141508,1731503448634,-500.0,0.00020614,2]
[342141509,1731503448643,-500.0,0.00020614,2]
[342141510,1731503448653,-500.0,0.00020614,2]
[342141511,1731503448662,-500.0,0.00020614,2]
[342141512,1731503448672,-500.0,0.00020614,2]
[342141513,1731503448682,-500.0,0.00020614,2]
[342141514,1731503448692,-500.0,0.00020614,2]
[342141515,1731503448701,-500.0,0.00020614,2]
[342141516,1731503448715,-500.0,0.00020614,2]
[342141517,1731503448724,-500.0,0.00020614,2]
[342141518,1731503448734,-500.0,0.00020614,2]
[342141519,1731503448743,-500.0,0.00020614,2]
[342141520,1731503448752,-500.0,0.00020614,2]
[342141521,1731503448762,-673.3,0.00020614,2]
[342141522,1731503448771,-500.0,0.00020614,2]
[342141523,1731503448780,-500.0,0.00020614,2]
[342141524,1731503448790,-500.0,0.00020614,2]
[342141525,1731503448800,-500.0,0.00020614,2]
[342141526,1731503448810,-500.0,0.00020614,2]
[342141527,1731503448820,-500.0,0.00020614,2]
[342141528,1731503448830,-500.0,0.00020614,2]
[342141529,1731503448840,-500.0,0.00020614,2]
[342141530,1731503448850,-500.0,0.00020614,2]
[342141531,1731503448859,-500.0,0.00020614,2]
[342141532,1731503448869,-500.0,0.00020614,2]
[342141533,1731503448878,-500.0,0.00020614,2]
[342141534,1731503448888,-500.0,0.00020614,2]
[342141535,1731503448898,-500.0,0.00020614,2]
[342141536,1731503448908,-500.0,0.00020614,2]
[342141537,1731503448918,-500.0,0.00020614,2]
[342141538,1731503448928,-500.0,0.00020614,2]
[342141539,1731503448939,-500.0,0.00020614,2]
[342141540,1731503448949,-500.0,0.00020614,2]
[342141541,1731503448963,-500.0,0.00020614,2]
[342141542,1731503448976,-500.0,0.00020614,2]
[342141543,1731503448986,-564.96791943,0.00020614,2]
[342141544,1731503448996,-1007.95,0.00020614,2]
[342141545,1731503449006,-516.39048526,0.00020614,2]
[342141546,1731503449016,-500.0,0.00020614,2]
[342141547,1731503449026,-500.0,0.00020614,2]
[342141548,1731503449036,-500.0,0.00020614,2]
[342141549,1731503449046,-536.03,0.00020614,2]
[342141550,1731503449056,-1034.52,0.00020614,2]
[342141551,1731503449067,-615.69,0.00020615,2]
[342141552,1731503449077,-503.51775705,0.00020615,2]
[342141553,1731503449087,-309.9884587,0.00020615,2]
[342141554,1731503449097,-500.0,0.00020615,2]
[342141555,1731503449107,-500.0,0.00020615,2]
[342141556,1731503449116,-500.0,0.00020615,2]
[342141557,1731503449126,-500.0,0.00020615,2]
[342141558,1731503449136,-500.0,0.00020615,2]
[342141559,1731503449145,-500.0,0.00020615,2]
[342141560,1731503449155,-500.0,0.00020615,2]
[342141561,1731503449164,-354.17521488,0.00020615,2]
[342141562,1731503449173,-500.0,0.00020615,2]
[342141563,1731503449182,-225.44820054,0.00020616,2]
[342141564,1731503449191,-538.11086593,0.00020616,2]
[342141565,1731503449200,-885.28,0.00020616,2]
[342141566,1731503449213,-500.0,0.00020616,2]
[342141567,1731503449222,-500.0,0.00020616,2]
[342141568,1731503449231,-500.0,0.00020616,2]
[342141569,1731503449240,-500.0,0.00020616,2]
[342141570,1731503449249,-500.0,0.00020616,2]
[342141571,1731503449259,-500.0,0.00020616,2]
[342141572,1731503449267,-1000.00001008,0.00020621,2]
[342141573,1731503449277,-500.0,0.00020621,2]
[342141574,1731503449286,-1000.0,0.00020621,2]
[342141575,1731503449295,-1033.0,0.00020621,2]
[342141576,1731503449304,-1040.77,0.00020886,2]
[342141577,1731503449313,-519.51,0.00020886,2]
[342141578,1731503449323,-500.0,0.00020887,2]
[342141579,1731503449332,-500.0,0.00020887,2]
[342141580,1731503449341,-500.0,0.00020887,2]
[342141581,1731503449350,-500.0,0.00020887,2]
[342141582,1731503449359,-500.0,0.00020887,2]
[342141583,1731503449369,-339.77899272,0.00020887,2]
[342141584,1731503449378,-500.0,0.00020887,2]
[342141585,1731503449386,-500.0,0.00020887,2]
[342141586,1731503449396,-533.77,0.00020887,2]
[342141587,1731503449405,-500.0,0.00020887,2]
[342141588,1731503449414,-500.0,0.00020887,2]
[342141589,1731503449424,-1213.96,0.00020887,2]
[342141590,1731503449433,-500.0,0.00020887,2]
[342141591,1731503449444,-816.71,0.00020887,2]
[342141592,1731503449454,-500.0,0.00020887,2]
[342141593,1731503449466,-1978.79,0.00020887,2]
[342141594,1731503449476,-500.0,0.00020887,2]
[342141595,1731503449487,-500.0,0.00020887,2]
[342141596,1731503449496,-500.0,0.00020887,2]
[342141597,1731503449506,-500.0,0.00020887,2]
[342141598,1731503449515,-1260.12,0.00020887,2]
[342141599,1731503449525,-500.0,0.00020887,2]
[342141600,1731503449534,-531.69,0.00020887,2]
[342141601,1731503449543,-500.0,0.00020887,2]
[342141602,1731503449553,-500.0,0.00020887,2]
[342141603,1731503449564,-631.50877711,0.00020887,2]
[342141604,1731503449574,-321.82379956,0.00020887,2]
[342141605,1731503449583,-500.0,0.00020887,2]
[342141606,1731503449593,-508.656144,0.00020887,2]
[342141607,1731503449602,-500.0,0.00020887,2]
[342141608,1731503449611,-500.0,0.00020887,2]
[342141609,1731503449620,-4626.69,0.00020887,2]
[342141610,1731503449629,-500.0,0.00020887,2]
[342141611,1731503449638,-856.5,0.00020887,2]
[342141612,1731503449648,-620.28,0.00020887,2]
[342141613,1731503449657,-500.0,0.00020887,2]
[342141614,1731503449667,-405.4437192,0.00020887,2]
[342141615,1731503449676,-500.0,0.00020887,2]
[342141616,1731503449686,-500.0,0.00020887,2]
[342141617,1731503449695,-500.0,0.00020887,2]
[342141618,1731503449705,-205.20178846,0.00020887,2]
[342141619,1731503449717,-500.0,0.00020887,2]
[342141620,1731503449727,-500.0,0.00020887,2]
[342141621,1731503449736,-500.0,0.00020887,2]
[342141622,1731503449745,-500.0,0.00020887,2]
[342141623,1731503449753,-744.6,0.00020887,2]
[342141624,1731503449763,-500.0,0.00020887,2]
[342141625,1731503449771,-500.0,0.00020887,2]
[342141626,1731503449780,-500.0,0.00020887,2]
[342141627,1731503449789,-223.23589047,0.00020888,2]
[342141628,1731503449798,-471.10287202,0.00020888,2]
[342141629,1731503449807,-500.0,0.00020888,2]
[342141630,1731503449816,-500.0,0.00020888,2]
[342141631,1731503449825,-518.80324458,0.00020888,2]
[342141632,1731503449834,-500.0,0.00020888,2]
[342141633,1731503449843,-500.0,0.00020888,2]
[342141634,1731503449852,-500.0,0.00020888,2]
[342141635,1731503449862,-500.0,0.00020888,2]
[342141636,1731503449871,-500.0,0.00020888,2]
[342141637,1731503449881,-500.0,0.00020888,2]
[342141638,1731503449891,-500.0,0.00020888,2]
[342141639,1731503449900,-500.0,0.00020888,2]
[342141640,1731503449909,-500.0,0.00020888,2]
[342141641,1731503449919,-500.0,0.00020888,2]
[342141642,1731503449928,-673.3,0.00020888,2]
[342141643,1731503449937,-500.0,0.00020888,2]
[342141644,1731503449945,-500.0,0.00020888,2]
[342141645,1731503449955,-500.0,0.00020888,2]
[342141646,1731503449967,-500.0,0.00020888,2]
[342141647,1731503449980,-356.5672428,0.00020888,2]
[342141648,1731503449990,-500.0,0.00020888,2]
[342141649,1731503449999,-500.0,0.00020888,2]
[342141650,1731503450009,-500.0,0.00020888,2]
[342141651,1731503450018,-450.68596909,0.00020888,2]
[342141652,1731503450027,-500.0,0.00020888,2]
[342141653,1731503450037,-500.0,0.00020888,2]
[342141654,1731503450046,-500.0,0.00020888,2]
[342141655,1731503450055,-500.0,0.00020888,2]
[342141656,1731503450064,-500.0,0.00020888,2]
[342141657,1731503450073,-500.0,0.00020888,2]
[342141658,1731503450082,-500.0,0.00020888,2]
[342141659,1731503450092,-500.0,0.00020888,2]
[342141660,1731503450101,-1007.95,0.00020888,2]
[342141661,1731503450110,-500.0,0.00020888,2]
[342141662,1731503450118,-282.39398169,0.00020888,2]
[342141663,1731503450127,-500.0,0.00020888,2]
[342141664,1731503450138,-536.03,0.00020888,2]
[342141665,1731503450147,-1034.52,0.00020888,2]
[342141666,1731503450156,-615.69,0.00020889,2]
[342141667,1731503450165,-500.0,0.00020889,2]
[342141668,1731503450174,-460.92653485,0.00020889,2]
[342141669,1731503450183,-500.0,0.00020889,2]
[342141670,1731503450193,-500.0,0.00020889,2]
[342141671,1731503450202,-500.0,0.00020889,2]
[342141672,1731503450215,-500.0,0.00020889,2]
[342141673,1731503450224,-500.0,0.00020889,2]
[342141674,1731503450232,-500.0,0.00020889,2]
[342141675,1731503450241,-885.28,0.0002089,2]
[342141676,1731503450250,-500.0,0.0002089,2]
[342141677,1731503450259,-500.0,0.0002089,2]
[342141678,1731503450268,-500.0,0.0002089,2]
[342141679,1731503450277,-500.0,0.0002089,2]
[342141680,1731503450286,-500.0,0.0002089,2]
[342141681,1731503450295,-500.0,0.0002089,2]
[342141682,1731503450304,-4502.33899318,0.00020892,2]
[342141683,1731503450313,-500.0,0.00020921,2]
[342141684,1731503450323,-1000.63514094,0.00020921,2]
[342141685,1731503450332,-55823.92,0.00021,2]
[342141686,1731503450341,-727.24,0.00021152,3]
[342141687,1731503450351,-363.62,0.00021152,3]
[342141688,1731503450360,-1040.77,0.0002116,2]
[342141689,1731503450369,-519.51,0.0002116,2]
[342141690,1731503450378,-500.0,0.00021161,2]
[342141691,1731503450387,-500.0,0.00021161,2]
[342141692,1731503450396,-500.0,0.00021161,2]
[342141693,1731503450405,-500.0,0.00021161,2]
[342141694,1731503450414,-500.0,0.00021161,2]
[342141695,1731503450423,-202.89563721,0.00021161,2]
[342141696,1731503450432,-500.0,0.00021161,2]
[342141697,1731503450441,-1213.96,0.00021161,2]
[342141698,1731503450451,-500.0,0.00021161,2]
[342141699,1731503450460,-816.71,0.00021161,2]
[342141700,1731503450476,-500.0,0.00021161,2]
[342141701,1731503450485,-1978.79,0.00021161,2]
[342141702,1731503450495,-523.45517035,0.00021161,2]
[342141703,1731503450504,-637.78832384,0.00021161,2]
[342141704,1731503450512,-500.0,0.00021161,2]
[342141705,1731503450522,-500.0,0.00021161,2]
[342141706,1731503450531,-1260.12,0.00021161,2]
[342141707,1731503450540,-500.0,0.00021161,2]
[342141708,1731503450549,-531.69,0.00021161,2]
[342141709,1731503450558,-500.0,0.00021161,2]
[342141710,1731503450567,-500.0,0.00021161,2]
[342141711,1731503450576,-500.0,0.00021161,2]
[342141712,1731503450585,-4626.69,0.00021161,2]
[342141713,1731503450594,-500.0,0.00021161,2]
[342141714,1731503450603,-856.5,0.00021161,2]
[342141715,1731503450612,-620.28,0.00021161,2]
[342141716,1731503450621,-169.12,0.00021161,2]
[342141717,1731503450631,-500.0,0.00021161,2]
[342141718,1731503450640,-500.0,0.00021161,2]
[342141719,1731503450649,-500.0,0.00021161,2]
[342141720,1731503450658,-500.0,0.00021161,2]
[342141721,1731503450668,-500.0,0.00021161,2]
[342141722,1731503450677,-500.0,0.00021161,2]
[342141723,1731503450686,-500.0,0.00021161,2]
[342141724,1731503450695,-744.6,0.00021161,2]
[342141725,1731503450704,-502.4462757,0.00021161,2]
[342141726,1731503450716,-500.0,0.00021161,2]
[342141727,1731503450725,-500.0,0.00021161,2]
[342141728,1731503450734,-500.0,0.00021162,2]
[342141729,1731503450743,-500.0,0.00021162,2]
[342141730,1731503450752,-500.0,0.00021162,2]
[342141731,1731503450761,-500.0,0.00021162,2]
[342141732,1731503450770,-449.31286311,0.00021162,2]
[342141733,1731503450779,-354.6482916,0.00021162,2]
[342141734,1731503450789,-500.0,0.00021162,2]
[342141735,1731503450798,-500.0,0.00021162,2]
[342141736,1731503450807,-500.0,0.00021162,2]
[342141737,1731503450816,-500.0,0.00021162,2]
[342141738,1731503450825,-500.0,0.00021162,2]
[342141739,1731503450834,-673.3,0.00021162,2]
[342141740,1731503450843,-500.0,0.00021162,2]
[342141741,1731503450854,-500.0,0.00021162,2]
[342141742,1731503450863,-500.0,0.00021162,2]
[342141743,1731503450872,-500.0,0.00021162,2]
[342141744,1731503450881,-500.0,0.00021162,2]
[342141745,1731503451003,-500.0,0.00021162,2]
[342141746,1731503451013,-504.88131074,0.00021162,2]
[342141747,1731503451023,-500.0,0.00021162,2]
[342141748,1731503451032,-500.0,0.00021162,2]
[342141749,1731503451042,-500.0,0.00021162,2]
[342141750,1731503451051,-500.0,0.00021162,2]
[342141751,1731503451060,-1007.95,0.00021162,2]
[342141752,1731503451070,-500.0,0.00021162,2]
[342141753,1731503451079,-500.0,0.00021162,2]
[342141754,1731503451089,-536.03,0.00021162,2]
[342141755,1731503451098,-1034.52,0.00021162,2]
[342141756,1731503451107,-615.69,0.00021163,2]
[342141757,1731503451117,-500.0,0.00021163,2]
[342141758,1731503451126,-500.0,0.00021163,2]
[342141759,1731503451136,-500.0,0.00021163,2]
[342141760,1731503451145,-500.0,0.00021163,2]
[342141761,1731503451154,-500.0,0.00021163,2]
[342141762,1731503451164,-500.0,0.00021163,2]
[342141763,1731503451173,-885.28,0.00021164,2]
[342141764,1731503451183,-500.0,0.00021164,2]
[342141765,1731503451192,-365.80841653,0.00021164,2]
[342141766,1731503451201,-180.26471933,0.00021164,2]
[342141767,1731503451211,-500.0,0.00021164,2]
[342141768,1731503451221,-500.0,0.00021164,2]
[342141769,1731503451230,-834.05176965,0.00021198,2]
[342141770,1731503451240,-1000.0,0.00021322,2]
[342141771,1731503451249,-1040.77,0.00021434,2]
[342141772,1731503451259,-519.51,0.00021434,2]
[342141773,1731503451268,-500.0,0.00021435,2]
[342141774,1731503451277,-500.0,0.00021435,2]
[342141775,1731503451287,-455.79040599,0.00021435,2]
[342141776,1731503451296,-500.0,0.00021435,2]
[342141777,1731503451305,-1213.96,0.00021435,2]
[342141778,1731503451315,-500.0,0.00021435,2]
[342141779,1731503451324,-816.71,0.00021435,2]
[342141780,1731503451334,-1978.79,0.00021435,2]
[342141781,1731503451343,-500.0,0.00021435,2]
[342141782,1731503451353,-500.0,0.00021435,2]
[342141783,1731503451363,-1260.12,0.00021435,2]
[342141784,1731503451372,-500.0,0.00021435,2]
[342141785,1731503451381,-531.69,0.00021435,2]
[342141786,1731503451390,-500.0,0.00021435,2]
[342141787,1731503451399,-500.0,0.00021435,2]
[342141788,1731503451411,-500.0,0.00021435,2]
[342141789,1731503451420,-4626.69,0.00021435,2]
[342141790,1731503451430,-500.0,0.00021435,2]
[342141791,1731503451439,-856.5,0.00021435,2]
[342141792,1731503451448,-620.28,0.00021435,2]
[342141793,1731503451460,-500.0,0.00021435,2]
[342141794,1731503451477,-500.0,0.00021435,2]
[342141795,1731503451486,-500.0,0.00021435,2]
[342141796,1731503451495,-500.0,0.00021435,2]
[342141797,1731503451504,-500.0,0.00021435,2]
[342141798,1731503451514,-500.0,0.00021435,2]
[342141799,1731503451524,-744.6,0.00021435,2]
[342141800,1731503451534,-500.0,0.00021435,2]
[342141801,1731503451543,-321.42960039,0.00021435,2]
[342141802,1731503451553,-500.0,0.00021436,2]
[342141803,1731503451562,-500.0,0.00021436,2]
[342141804,1731503451573,-500.0,0.00021436,2]
[342141805,1731503451582,-422.9223916,0.00021436,2]
[342141806,1731503451592,-500.0,0.00021436,2]
[342141807,1731503451601,-500.0,0.00021436,2]
[342141808,1731503451611,-206.53132609,0.00021436,2]
[342141809,1731503451620,-625.42583354,0.00021436,2]
[342141810,1731503451630,-500.0,0.00021436,2]
[342141811,1731503451639,-673.3,0.00021436,2]
[342141812,1731503451648,-500.0,0.00021436,2]
[342141813,1731503451657,-500.0,0.00021436,2]
[342141814,1731503451665,-500.0,0.00021436,2]
[342141815,1731503451674,-500.0,0.00021436,2]
[342141816,1731503451683,-500.0,0.00021436,2]
[342141817,1731503451692,-500.0,0.00021436,2]
[342141818,1731503451701,-500.0,0.00021436,2]
[342141819,1731503451710,-500.0,0.00021436,2]
[342141820,1731503451721,-500.0,0.00021436,2]
[342141821,1731503451731,-1007.95,0.00021436,2]
[342141822,1731503451740,-500.0,0.00021436,2]
[342141823,1731503451750,-500.0,0.00021436,2]
[342141824,1731503451759,-536.03,0.00021436,2]
[342141825,1731503451768,-1034.52,0.00021436,2]
[342141826,1731503451778,-615.69,0.00021437,2]
[342141827,1731503451788,-500.0,0.00021437,2]
[342141828,1731503451797,-500.0,0.00021437,2]
[342141829,1731503451806,-500.0,0.00021437,2]
[342141830,1731503451815,-500.0,0.00021437,2]
[342141831,1731503451824,-500.0,0.00021437,2]
[342141832,1731503451833,-885.28,0.00021438,2]
[342141833,1731503451842,-557.49107824,0.00021438,2]
[342141834,1731503451851,-500.0,0.00021438,2]
[342141835,1731503451860,-510.92798098,0.00021438,2]
[342141836,1731503451869,-420.0,0.00021534,2]
[342141837,1731503451879,-857.79086963,0.00021595,2]
[342141838,1731503451888,-1045.11368554,0.000216,2]
[342141839,1731503451897,-1500.0,0.00021622,2]
[342141840,1731503451906,-1040.77,0.00021708,2]
[342141841,1731503451916,-519.51,0.00021708,2]
[342141842,1731503451925,-228.00733197,0.00021709,2]
[342141843,1731503451935,-374.85080187,0.00021709,2]
[342141844,1731503451944,-500.0,0.00021709,2]
[342141845,1731503451953,-1213.96,0.00021709,2]
[342141846,1731503451965,-500.0,0.00021709,2]
[342141847,1731503451974,-816.71,0.00021709,2]
[342141848,1731503451983,-1978.79,0.00021709,2]
[342141849,1731503451993,-500.0,0.00021709,2]
[342141850,1731503452002,-500.0,0.00021709,2]
[342141851,1731503452011,-1260.12,0.00021709,2]
[342141852,1731503452020,-500.0,0.00021709,2]
[342141853,1731503452029,-531.69,0.00021709,2]
[342141854,1731503452038,-500.0,0.00021709,2]
[342141855,1731503452048,-500.0,0.00021709,2]
[342141856,1731503452057,-4626.69,0.00021709,2]
[342141857,1731503452066,-500.0,0.00021709,2]
[342141858,1731503452075,-856.5,0.00021709,2]
[342141859,1731503452085,-620.28,0.00021709,2]
[342141860,1731503452094,-500.0,0.00021709,2]
[342141861,1731503452104,-500.0,0.00021709,2]
[342141862,1731503452113,-500.0,0.00021709,2]
[342141863,1731503452123,-500.0,0.00021709,2]
[342141864,1731503452133,-500.0,0.00021709,2]
[342141865,1731503452142,-500.0,0.00021709,2]
[342141866,1731503452151,-744.6,0.00021709,2]
[342141867,1731503452160,-500.0,0.00021709,2]
[342141868,1731503452170,-500.0,0.0002171,2]
[342141869,1731503452179,-500.0,0.0002171,2]
[342141870,1731503452189,-500.0,0.0002171,2]
[342141871,1731503452198,-637.93691439,0.0002171,2]
[342141872,1731503452208,-500.0,0.0002171,2]
[342141873,1731503452219,-363.57782611,0.0002171,2]
[342141874,1731503452228,-673.3,0.0002171,2]
[342141875,1731503452238,-500.0,0.0002171,2]
[342141876,1731503452247,-500.0,0.0002171,2]
[342141877,1731503452256,-500.0,0.0002171,2]
[342141878,1731503452265,-500.0,0.0002171,2]
[342141879,1731503452276,-500.0,0.0002171,2]
[342141880,1731503452285,-297.73517808,0.0002171,2]
[342141881,1731503452294,-500.0,0.0002171,2]
[342141882,1731503452303,-500.0,0.0002171,2]
[342141883,1731503452312,-1007.95,0.0002171,2]
[342141884,1731503452321,-500.0,0.0002171,2]
[342141885,1731503452331,-500.0,0.0002171,2]
[342141886,1731503452340,-536.03,0.0002171,2]
[342141887,1731503452350,-1034.52,0.0002171,2]
[342141888,1731503452360,-615.69,0.00021711,2]
[342141889,1731503452369,-500.0,0.00021711,2]
[342141890,1731503452379,-500.0,0.00021711,2]
[342141891,1731503452389,-265.20030884,0.00021711,2]
[342141892,1731503452399,-500.0,0.00021711,2]
[342141893,1731503452408,-500.0,0.00021711,2]
[342141894,1731503452418,-885.28,0.00021712,2]
[342141895,1731503452427,-500.0,0.00021712,2]
[342141896,1731503452437,-8702.23895343,0.000218,10]
[342141897,1731503452447,-186.75,0.000218,2]
[342141898,1731503452457,-3000.0,0.000218,2]
[342141899,1731503452471,-5924.81575387,0.000218,2]
[342141900,1731503452484,-4561.81615734,0.000218,2]
[342141901,1731503452493,-4561.81615731,0.000218,2]
[342141902,1731503452503,-4561.81615731,0.000218,2]
[342141903,1731503452512,-4561.81615731,0.000218,2]
[342141904,1731503452522,-530.0,0.00021802,2]
[342141905,1731503452532,-1077.0,0.00021802,2]
[342141906,1731503452541,-2391.0,0.00021802,2]
[342141907,1731503452552,-3000.0,0.0002181,2]
[342141908,1731503452562,-3000.0,0.0002182,2]
[342141909,1731503452571,-3000.0,0.0002183,2]
[342141910,1731503452581,-3000.0,0.0002184,2]
[342141911,1731503452591,-3000.0,0.0002185,2]
[342141912,1731503452600,-3000.0,0.0002186,2]
[342141913,1731503452610,-3000.0,0.0002187,2]
[342141914,1731503452619,-3000.0,0.0002188,2]
[342141915,1731503452628,-3000.0,0.0002189,2]
[342141916,1731503452638,-500.0,0.000219,2]
[342141917,1731503452647,-1128.13,0.000219,2]
[342141918,1731503452657,-186.0,0.000219,2]
[342141919,1731503452666,-3000.0,0.000219,2]
[342141920,1731503452676,-300.638395,0.000219,9]
[342141921,1731503452685,-3000.0,0.0002191,2]
[342141922,1731503452694,-1000.0,0.00021917,5]
[342141923,1731503452703,-1006.42118583,0.00021917,5]
[342141924,1731503452713,-501.88711786,0.00021917,2]
[342141925,1731503452730,-2336.0,0.00021917,2]
[342141926,1731503452740,-2336.0,0.00021917,2]
[342141927,1731503452750,-2336.0,0.00021917,2]
[342141928,1731503452760,-2336.0,0.00021917,2]
[342141929,1731503452769,-2336.0,0.00021917,2]
[342141930,1731503452778,-2336.0,0.00021917,2]
[342141931,1731503452786,-2336.0,0.00021917,2]
[342141932,1731503452795,-2354.43998529,0.00021917,2]
[342141933,1731503452805,-151.0,0.00021917,2]
[342141934,1731503452815,-151.0,0.00021917,2]
[342141935,1731503452824,-500.0,0.00021918,2]
[342141936,1731503452834,-500.0,0.00021918,2]
[342141937,1731503452843,-500.0,0.00021918,2]
[342141938,1731503452852,-500.0,0.00021918,2]
[342141939,1731503452862,-371.04258781,0.00021918,2]
[342141940,1731503452872,-3000.0,0.0002192,2]
[342141941,1731503452881,-233.542348,0.00021925,2]
[342141942,1731503452891,-380.464927,0.00021925,2]
[342141943,1731503452901,-153.739735,0.00021925,2]
[342141944,1731503452911,-423.68925,0.00021925,2]
[342141945,1731503452921,-380.464927,0.00021925,2]
[342141946,1731503452930,-3000.0,0.0002193,2]
[342141947,1731503452940,-3000.0,0.0002194,2]
[342141948,1731503452951,-3000.0,0.0002195,2]
[342141949,1731503452960,-3000.0,0.0002196,2]
[342141950,1731503452974,-3000.0,0.0002197,2]
[342141951,1731503452982,-3000.0,0.0002198,2]
[342141952,1731503452992,-151.0,0.0002198,7]
[342141953,1731503453001,-151.0,0.0002198,7]
[342141954,1731503453010,-276.53058,0.0002198,7]
[342141955,1731503453020,-151.0,0.0002198,7]
[342141956,1731503453030,-177.086424,0.0002198,7]
[342141957,1731503453040,-152.367205,0.0002198,7]